bitfinex-derivatives/quotes_BTCF0:USTF0_20251115
["timestamp","ask_amount","ask_price","bid_price","bid_amount"]
[1763213702792,0.01236,96094.0,96093.0,0.11907637]
[1763213702996,0.01236,96094.0,96093.0,0.09661796]
[1763213703301,0.01236,96091.0,96090.0,0.02291267]
[1763213703503,0.01236,96091.0,96090.0,0.04537267]
[1763213703689,0.12676665,96091.0,96090.0,0.04537267]
[1763213706799,0.11440665,96091.0,96090.0,0.04537267]
[1763213706997,0.0001561,96100.0,96099.0,0.04464]
[1763213707200,0.0001561,96100.0,96099.0,0.40544]
[1763213708096,0.0001561,96100.0,96099.0,0.40744]
[1763213708691,0.0001561,96100.0,96099.0,0.40644]
[1763213709202,0.37316,96121.0,96120.0,0.04464]
[1763213709507,0.37316,96121.0,96120.0,0.04537267]
[1763213709889,0.47884279,96121.0,96120.0,0.04537267]
[1763213714401,0.3608,96121.0,96120.0,0.04537267]
[1763213714702,0.00633,96121.0,96120.0,0.04537267]
[1763213715100,0.01266,96121.0,96120.0,0.04537267]
[1763213720106,0.01266,96121.0,96120.0,0.05899267]
[1763213724111,0.37346,96121.0,96120.0,0.05899267]
[1763213724312,0.47914279,96121.0,96120.0,0.05899267]
[1763213727811,0.11834279,96121.0,96120.0,0.05899267]
[1763213730310,0.37346,96128.0,96127.0,0.0448]
[1763213730911,0.47308207,96128.0,96127.0,0.0448]
[1763213731515,0.11228207,96128.0,96127.0,0.0448]
[1763213733114,0.11228207,96128.0,96117.0,0.01267]
[1763213733115,0.01266,96118.0,96117.0,0.05747]
[1763213736619,0.00852803,96120.0,96119.0,0.0448]
[1763213737018,0.00219803,96120.0,96119.0,0.0448]
[1763213740322,0.11228207,96128.0,96127.0,0.0448]
[1763213747427,0.10595207,96128.0,96127.0,0.0448]
[1763213748722,0.10595207,96128.0,96126.0,0.01392]
[1763213748723,0.00235413,96130.0,96129.0,0.0448]
[1763213749523,0.00868413,96130.0,96129.0,0.0448]
[1763213750228,0.01501413,96130.0,96129.0,0.0448]
[1763213752128,0.00235413,96130.0,96129.0,0.0448]
[1763213752631,0.0001561,96130.0,96129.0,0.0448]
[1763213759338,0.3608,96149.0,96138.0,0.04556]
[1763213759740,0.005,96156.0,96138.0,0.04556]
[1763213760137,0.0001561,96148.0,96138.0,0.04556]
[1763213761539,0.36729,96139.0,96138.0,0.04556]
[1763213762046,0.3608,96139.0,96138.0,0.04556]
[1763213762235,0.37378,96139.0,96138.0,0.04556]
[1763213762735,0.37378,96147.0,96145.0,0.01274]
[1763213763039,0.10048328,96147.0,96146.0,0.04556]
[1763213766032,0.10148328,96147.0,96146.0,0.04556]
[1763213766438,0.10048328,96147.0,96146.0,0.04556]
[1763213766640,0.10148328,96147.0,96146.0,0.04556]
[1763213771141,0.08850328,96147.0,96146.0,0.04556]
[1763213771443,0.001,96147.0,96146.0,0.04556]
[1763213772637,0.0001561,96148.0,96147.0,0.04425]
[1763213772846,0.005,96156.0,96150.0,0.00073267]
[1763213773041,0.005,96156.0,96155.0,0.058]
[1763213773241,0.37270997,96166.0,96165.0,0.058]
[1763213773544,0.00025997,96166.0,96165.0,0.058]
[1763213773843,0.01190997,96166.0,96165.0,0.058]
[1763213774039,0.00025997,96166.0,96165.0,0.058]
[1763213776242,0.00225997,96166.0,96165.0,0.058]
[1763213776842,0.00125997,96166.0,96165.0,0.058]
[1763213777044,0.00025997,96166.0,96165.0,0.058]
[1763213777242,0.00010324,96175.0,96174.0,0.058]
[1763213779547,0.01201324,96175.0,96174.0,0.058]
[1763213779748,0.02392324,96175.0,96174.0,0.058]
[1763213780444,0.01201324,96175.0,96174.0,0.058]
[1763213780748,0.00010324,96175.0,96174.0,0.058]
[1763213782447,3.24e-06,96175.0,96174.0,0.058]
[1763213782644,3.24e-06,96175.0,96174.0,0.06843342]
[1763213782847,3.24e-06,96175.0,96174.0,0.42923342]
[1763213783944,3.24e-06,96175.0,96174.0,0.53327932]
[1763213784143,3.24e-06,96175.0,96174.0,0.42923342]
[1763213784651,0.005,96196.0,96195.0,0.04425]
[1763213784950,0.0048439,96196.0,96195.0,0.04425]
[1763213785151,0.0168539,96196.0,96195.0,0.04425]
[1763213785353,0.0288639,96196.0,96195.0,0.04425]
[1763213786052,0.0298639,96196.0,96195.0,0.04425]
[1763213786251,0.0308639,96196.0,96195.0,0.04425]
[1763213786452,0.0068439,96196.0,96195.0,0.04425]
[1763213786644,0.03538,96214.0,96213.0,0.04425]
[1763213787250,0.06061375,96214.0,96213.0,0.04425]
[1763213787952,0.03738,96211.0,96210.0,0.00073267]
[1763213788251,0.0399727,96211.0,96210.0,0.04665267]
[1763213789954,0.0439727,96211.0,96210.0,0.04665267]
[1763213791655,0.004,96211.0,96210.0,0.04665267]
[1763213791862,0.02269,96211.0,96210.0,0.04665267]
[1763213792152,0.004,96211.0,96210.0,0.04665267]
[1763213792356,0.3608,96223.0,96222.0,0.05903]
[1763213792852,0.40551,96234.0,96233.0,0.04592]
[1763213793359,0.3608,96234.0,96233.0,0.04592]
[1763213793547,0.04471,96231.0,96230.0,0.00073267]
[1763213794059,0.04471,96223.0,96222.0,0.05903]
[1763213794755,0.04471,96223.0,96222.0,0.04592]
[1763213795157,0.04471,96223.0,96222.0,0.05903]
[1763213798149,0.40551,96234.0,96233.0,0.04592]
[1763213798754,0.04471,96231.0,96230.0,0.00073267]
[1763213799152,0.04730163,96231.0,96230.0,0.02372267]
[1763213799653,0.04730163,96231.0,96230.0,0.00073267]
[1763213799960,0.04830163,96231.0,96230.0,0.00073267]
[1763213800554,0.04930163,96231.0,96230.0,0.00073267]
[1763213803457,0.04471,96223.0,96222.0,0.05903]
[1763213804058,0.04471,96221.0,96220.0,0.00073267]
[1763213804262,0.04471,96221.0,96213.0,0.10735297]
[1763213804263,0.04471,96216.0,96215.0,0.05903]
[1763213804861,0.04471,96216.0,96215.0,0.04592]
[1763213806564,0.04471,96216.0,96215.0,0.05903]
[1763213815465,0.04471,96214.0,96213.0,0.00015593]
[1763213815660,0.40551,96214.0,96213.0,0.00015593]
[1763213815865,0.40723838,96214.0,96213.0,0.00015593]
[1763213816561,0.43094962,96214.0,96213.0,0.00015593]
[1763213817562,0.04471,96171.0,96170.0,0.04592]
[1763213817770,0.02269,96171.0,96170.0,0.04665267]
[1763213818570,0.04447563,96180.0,96179.0,0.04537]
[1763213818761,0.02504366,96180.0,96179.0,0.04537]
[1763213818961,0.04514366,96180.0,96179.0,0.04537]
[1763213819971,0.09977085,96180.0,96179.0,0.04537]
[1763213820671,0.3608,96192.0,96191.0,0.04511]
[1763213820871,0.38196,96192.0,96191.0,0.04511]
[1763213821068,0.40359,96202.0,96201.0,0.04511]
[1763213821271,0.04279,96181.0,96180.0,0.02273]
[1763213821567,0.41266942,96181.0,96180.0,0.05861267]
[1763213821771,0.00907942,96181.0,96180.0,0.05861267]
[1763213821966,0.40359,96189.0,96188.0,0.04511]
[1763213822371,0.04279,96189.0,96188.0,0.04511]
[1763213822563,0.08963455,96189.0,96188.0,0.04511]
[1763213823562,0.04684455,96189.0,96188.0,0.04511]
[1763213823872,0.3608,96194.0,96187.0,0.01277]
[1763213823873,0.3608,96194.0,96193.0,0.04511]
[1763213824066,0.3608,96202.0,96201.0,0.05788]
[1763213824067,0.40359,96202.0,96201.0,0.05788]
[1763213824768,0.04279,96202.0,96201.0,0.05788]
[1763213826465,0.40359,96214.0,96213.0,0.04511]
[1763213826671,0.04279,96211.0,96210.0,0.02346267]
[1763213826875,0.04279,96211.0,96210.0,0.04584267]
[1763213827375,0.07061645,96211.0,96210.0,0.04584267]
[1763213827572,0.38196,96214.0,96213.0,0.04511]
[1763213827767,0.3608,96214.0,96213.0,0.04511]
[1763213827976,0.38196,96214.0,96213.0,0.04511]
[1763213828670,0.38296,96214.0,96213.0,0.04511]
[1763213828868,0.40459,96214.0,96213.0,0.04511]
[1763213829070,0.40559,96214.0,96213.0,0.04511]
[1763213829467,0.40459,96214.0,96213.0,0.04511]
[1763213830275,0.40359,96214.0,96213.0,0.04511]
[1763213831978,0.02116,96214.0,96213.0,0.04511]
[1763213832276,0.4047,96222.0,96221.0,0.04394]
[1763213832870,0.42302066,96222.0,96221.0,0.04394]
[1763213837480,0.4047,96222.0,96221.0,0.04394]
[1763213838780,0.3608,96222.0,96221.0,0.04394]
[1763213838978,0.4047,96232.0,96231.0,0.04394]
[1763213839681,0.41438093,96232.0,96231.0,0.04394]
[1763213840379,0.41538093,96232.0,96231.0,0.04394]
[1763213841282,0.0439,96231.0,96230.0,0.00073267]
[1763213841578,0.0439,96223.0,96222.0,0.02171]
[1763213841785,0.0439,96221.0,96220.0,0.04467267]
[1763213842182,0.04562813,96221.0,96220.0,0.04467267]
[1763213842678,0.04562813,96221.0,96220.0,0.00073267]
[1763213843276,0.0439,96213.0,96201.0,0.37457]
[1763213843469,0.0439,96213.0,96212.0,0.38266593]
[1763213843675,0.0439,96213.0,96212.0,0.40489593]
[1763213844376,0.0439,96213.0,96212.0,0.04409593]
[1763213845674,0.02281,96216.0,96215.0,0.05771]
[1763213845980,0.4047,96216.0,96215.0,0.05771]
[1763213846284,0.4047,96216.0,96212.0,0.00015593]
[1763213846285,0.0439,96213.0,96212.0,0.00015593]
[1763213846680,0.04649259,96213.0,96212.0,0.00015593]
[1763213846886,0.04649259,96213.0,96212.0,0.02186593]
[1763213847187,0.04649259,96213.0,96212.0,0.04409593]
[1763213847985,0.04649259,96213.0,96212.0,0.00015593]
[1763213849880,0.04649259,96213.0,96212.0,0.04469593]
[1763213852990,0.3608,96216.0,96215.0,0.05778]
[1763213854085,0.3618,96216.0,96215.0,0.05778]
[1763213854485,0.001,96216.0,96215.0,0.05778]
[1763213854986,0.04502,96216.0,96215.0,0.05778]
[1763213855296,0.001,96216.0,96215.0,0.05778]
[1763213855588,0.02385,96216.0,96215.0,0.05778]
[1763213856383,0.04502,96216.0,96215.0,0.05778]
[1763213857682,0.001,96216.0,96215.0,0.05778]
[1763213857888,0.02385,96216.0,96215.0,0.05778]
[1763213858184,0.04502,96216.0,96215.0,0.05778]
[1763213861587,0.001,96216.0,96215.0,0.05778]
[1763213862485,0.001,96216.0,96215.0,0.13210317]
[1763213863389,0.00031446,96216.0,96215.0,0.05778]
[1763213863888,0.00031446,96216.0,96215.0,0.13195175]
[1763213864086,0.00031446,96216.0,96215.0,0.05778]
[1763213873890,0.02316446,96216.0,96215.0,0.05778]
[1763213874196,0.04433446,96216.0,96215.0,0.05778]
[1763213879297,0.02316446,96216.0,96215.0,0.05778]
[1763213879792,0.00031446,96216.0,96215.0,0.05778]
[1763213882189,0.00031446,96216.0,96215.0,0.13195175]
[1763213882395,0.00031446,96216.0,96215.0,0.05778]
[1763213890604,0.3658,96236.0,96235.0,0.05853]
[1763213890605,0.41026,96236.0,96235.0,0.05853]
[1763213890801,0.43401835,96236.0,96235.0,0.05853]
[1763213891199,0.44024388,96236.0,96235.0,0.05853]
[1763213892501,0.44224388,96236.0,96235.0,0.05853]
[1763213894404,0.04467,96231.0,96230.0,0.05750267]
[1763213894709,0.04898929,96231.0,96230.0,0.05750267]
[1763213895707,0.04998929,96231.0,96230.0,0.05750267]
[1763213896093,0.05098929,96231.0,96230.0,0.05750267]
[1763213899001,0.05098929,96231.0,96230.0,0.00073267]
[1763213900801,0.04467,96223.0,96222.0,0.40461]
[1763213901101,0.05780732,96223.0,96222.0,0.04381]
[1763213901303,0.04467,96221.0,96220.0,0.00073267]
[1763213901704,0.05071742,96221.0,96220.0,0.02278267]
[1763213901899,0.05071742,96221.0,96220.0,0.04454267]
[1763213902501,0.05071742,96221.0,96220.0,0.05790267]
[1763213902903,0.05071742,96221.0,96220.0,0.04454267]
[1763213903102,0.04467,96213.0,96212.0,0.00015593]
[1763213903302,0.40547,96213.0,96212.0,0.04396593]
[1763213903610,0.42552054,96213.0,96212.0,0.04396593]
[1763213906503,0.04423,96201.0,96196.0,0.07425883]
[1763213906702,0.04423,96193.0,96192.0,0.07425883]
[1763213906909,0.04423,96193.0,96192.0,0.04381]
[1763213907102,0.04639141,96193.0,96192.0,0.04381]
[1763213907914,0.04639141,96193.0,96192.0,0.04481]
[1763213910515,0.3608,96197.0,96196.0,0.04415]
[1763213910710,0.00015593,96202.0,96194.0,0.01321]
[1763213910711,0.02243593,96202.0,96201.0,0.05736]
[1763213910917,0.04450593,96202.0,96201.0,0.05736]
[1763213911311,0.08011146,96202.0,96201.0,0.05736]
[1763213913014,0.03576146,96202.0,96201.0,0.05736]
[1763213913205,0.05804146,96202.0,96201.0,0.05736]
[1763213913610,0.08011146,96202.0,96201.0,0.05736]
[1763213914713,0.40553,96230.0,96229.0,0.05736]
[1763213914919,0.38565803,96230.0,96229.0,0.05736]
[1763213915215,0.40772803,96230.0,96229.0,0.05736]
[1763213915418,0.04692803,96230.0,96229.0,0.05736]
[1763213915911,0.02585803,96230.0,96229.0,0.05736]
[1763213916719,0.001,96230.0,96229.0,0.05736]
[1763213917215,0.002,96230.0,96229.0,0.05736]
[1763213917717,0.001,96230.0,96229.0,0.05736]
[1763213918118,0.002,96230.0,96229.0,0.05736]
[1763213920115,0.005,96236.0,96235.0,0.04415]
[1763213920314,0.005,96236.0,96235.0,0.40495]
[1763213921408,0.006,96236.0,96235.0,0.40495]
[1763213921716,0.007,96236.0,96235.0,0.40495]
[1763213921918,0.04498975,96246.0,96245.0,0.04415]
[1763213923112,0.04898975,96246.0,96245.0,0.04415]
[1763213928820,0.06241975,96246.0,96245.0,0.02118]
[1763213929615,0.06241975,96246.0,96245.0,0.04415]
[1763213929821,0.04473,96237.0,96236.0,0.14445655]
[1763213930020,0.04473,96237.0,96236.0,0.04415]
[1763213931310,0.04573,96237.0,96236.0,0.04415]
[1763213931919,0.04673,96237.0,96236.0,0.04415]
[1763213936922,0.04673,96237.0,96236.0,0.02118]
[1763213937322,0.04673,96237.0,96236.0,0.04415]
[1763213942423,0.04573,96237.0,96236.0,0.04415]
[1763213944119,0.04573,96237.0,96236.0,0.11822969]
[1763213945229,0.04573,96237.0,96236.0,0.04415]
[1763213946027,0.001,96237.0,96236.0,0.04415]
[1763213947722,0.00025975,96246.0,96245.0,0.0456]
[1763213948127,0.04652975,96246.0,96245.0,0.0456]
[1763213948930,0.04752975,96246.0,96245.0,0.0456]
[1763213949130,0.04852975,96246.0,96245.0,0.0456]
[1763213952627,0.04852975,96246.0,96245.0,0.05523]
[1763213953233,0.02536975,96246.0,96245.0,0.05523]
[1763213953630,0.00225975,96246.0,96245.0,0.05523]
[1763213955430,0.02457975,96246.0,96245.0,0.05523]
[1763213955635,0.04767975,96246.0,96245.0,0.05523]
[1763213956025,0.01273,96258.0,96241.0,0.3608]
[1763213956026,0.3608,96267.0,96266.0,0.0455]
[1763213956231,0.38312,96267.0,96266.0,0.0455]
[1763213956539,0.40622,96267.0,96266.0,0.0455]
[1763213956730,0.04542,96267.0,96266.0,0.0455]
[1763213957140,0.04542,96267.0,96266.0,0.4063]
[1763213957327,0.004,96267.0,96266.0,0.4063]
[1763213957736,0.05815,96258.0,96257.0,0.00015584]
[1763213957932,0.05815,96258.0,96236.0,0.02311]
[1763213957933,0.01273,96240.0,96236.0,0.02311]
[1763213958138,0.04542,96237.0,96236.0,0.02311]
[1763213958333,0.04542,96231.0,96230.0,0.11682083]
[1763213958533,0.04542,96231.0,96230.0,0.0455]
[1763213965235,0.05815,96222.0,96221.0,0.04565584]
[1763213965439,0.41895,96222.0,96221.0,0.04565584]
[1763213968939,0.41895,96222.0,96221.0,0.00015584]
[1763213969146,0.41895,96222.0,96206.0,0.00025986]
[1763213969147,0.04376,96207.0,96206.0,0.00025986]
[1763213969337,0.40456,96207.0,96206.0,0.00025986]
[1763213970343,0.40456,96207.0,96206.0,0.00225986]
[1763213971640,0.04376,96198.0,96197.0,0.00027601]
[1763213972039,0.04721784,96198.0,96197.0,0.00027601]
[1763213972738,0.04721784,96198.0,96197.0,0.00127601]
[1763213972935,0.04721784,96198.0,96197.0,0.00327601]
[1763213978252,0.06065784,96198.0,96197.0,0.00327601]
[1763213979845,0.06065784,96198.0,96197.0,0.02487601]
[1763213981444,0.06065784,96198.0,96197.0,0.04811601]
[1763213982952,0.06065784,96198.0,96197.0,0.00327601]
[1763213983155,0.06065784,96198.0,96197.0,0.02487601]
[1763213986053,0.06065784,96198.0,96197.0,0.00327601]
[1763213986654,0.06065784,96198.0,96197.0,0.02487601]
[1763213989550,0.06065784,96198.0,96197.0,0.04811601]
[1763213991557,0.04721784,96198.0,96197.0,0.04811601]
[1763213993063,0.00219803,96200.0,96199.0,0.04484]
[1763213993765,0.02448803,96200.0,96199.0,0.04484]
[1763213993960,0.00219803,96200.0,96199.0,0.04484]
[1763213994353,0.04376,96215.0,96214.0,0.04484]
[1763213995156,0.02229,96215.0,96214.0,0.04484]
[1763213995359,0.02229,96215.0,96210.0,0.01297]
[1763213995360,0.3608,96218.0,96215.0,0.04484]
[1763213996261,0.00219803,96220.0,96215.0,0.04484]
[1763213996659,0.00219803,96220.0,96219.0,0.04484]
[1763213997458,0.40456,96227.0,96226.0,0.04484]
[1763213998164,0.3608,96227.0,96226.0,0.04484]
[1763213998365,0.00219803,96230.0,96229.0,0.04357]
[1763213998566,0.36095583,96236.0,96235.0,0.04357]
[1763213998766,0.00015583,96236.0,96235.0,0.04357]
[1763213999159,0.02194583,96236.0,96235.0,0.04357]
[1763213999470,0.04386583,96236.0,96235.0,0.04357]
[1763214001569,0.04386583,96236.0,96226.0,0.43212083]
[1763214001570,0.04371,96227.0,96226.0,0.47569083]
[1763214001866,0.04371,96227.0,96226.0,0.3608]
[1763214002262,0.04371,96218.0,96217.0,0.00015593]
[1763214002766,0.04371,96218.0,96217.0,0.04372593]
[1763214002963,0.40451,96218.0,96217.0,0.00015593]
[1763214003166,0.40451,96218.0,96217.0,0.02119593]
[1763214003866,0.40451,96218.0,96217.0,0.00015593]
[1763214004255,0.40451,96218.0,96200.0,0.07132083]
[1763214004571,0.04371,96201.0,96200.0,0.11489083]
[1763214004761,0.04371,96201.0,96200.0,0.04357]
[1763214005765,0.04371,96201.0,96200.0,0.04457]
[1763214006266,0.04371,96201.0,96200.0,0.04557]
[1763214006767,0.02179,96201.0,96200.0,0.04557]
[1763214006962,0.04371,96201.0,96200.0,0.04557]
[1763214007164,0.04386593,96210.0,96209.0,0.04357]
[1763214007369,0.04606396,96210.0,96209.0,0.04357]
[1763214008363,0.04606396,96210.0,96209.0,0.04557]
[1763214009263,0.02414396,96210.0,96209.0,0.04557]
[1763214009462,0.00235396,96210.0,96209.0,0.04557]
[1763214011462,0.00015593,96210.0,96209.0,0.04557]
[1763214011861,0.04409593,96210.0,96209.0,0.04557]
[1763214012061,0.04629396,96210.0,96209.0,0.04557]
[1763214027576,0.05926396,96210.0,96209.0,0.04557]
[1763214028473,0.05926396,96210.0,96209.0,0.002]
[1763214029980,0.05926396,96210.0,96209.0,0.02455]
[1763214031077,0.05926396,96210.0,96194.0,0.09294692]
[1763214031078,0.04993,96198.0,96194.0,0.09294692]
[1763214031281,0.04993,96198.0,96191.0,0.00015593]
[1763214031282,0.41073,96198.0,96192.0,0.09294692]
[1763214031478,0.41073,96198.0,96191.0,0.00015593]
[1763214031784,0.04291,96192.0,96191.0,0.00015593]
[1763214032082,0.04809729,96192.0,96191.0,0.04543593]
[1763214032482,0.04709729,96192.0,96191.0,0.04543593]
[1763214032783,0.04721211,96192.0,96191.0,0.04543593]
[1763214033383,0.04621211,96192.0,96191.0,0.04543593]
[1763214035691,0.04621211,96192.0,96191.0,0.00015593]
[1763214035882,0.04621211,96192.0,96191.0,0.02270593]
[1763214036188,0.04621211,96192.0,96191.0,0.00015593]
[1763214038884,0.04291,96181.0,96180.0,0.02255]
[1763214039087,0.04291,96175.0,96174.0,0.04528]
[1763214040783,0.04291,96169.0,96168.0,0.05864]
[1763214040988,0.04291,96169.0,96168.0,0.04528]
[1763214041186,0.04291,96166.0,96165.0,0.02270593]
[1763214041787,0.04291,96166.0,96165.0,0.00015593]
[1763214041984,0.07404088,96166.0,96165.0,0.00015593]
[1763214042186,0.07404088,96166.0,96150.0,0.01336]
[1763214042187,0.04291,96152.0,96151.0,0.04528]
[1763214042787,0.04291,96152.0,96151.0,0.02255]
[1763214042986,0.04510803,96150.0,96140.0,0.10704307]
[1763214043381,0.04683871,96150.0,96140.0,0.00015593]
[1763214043589,0.04683871,96150.0,96140.0,0.107199]
[1763214044087,0.04683871,96150.0,96140.0,0.21424207]
[1763214044290,0.04683871,96150.0,96149.0,0.02366578]
[1763214044889,0.04583871,96150.0,96149.0,0.02366578]
[1763214045090,0.04583871,96150.0,96149.0,0.04639578]
[1763214045286,0.00119803,96150.0,96149.0,0.04639578]
[1763214045791,0.00119803,96150.0,96149.0,0.04739578]
[1763214045989,0.02222803,96150.0,96149.0,0.04739578]
[1763214046587,0.00119803,96150.0,96149.0,0.04739578]
[1763214047094,0.02222803,96150.0,96149.0,0.04739578]
[1763214047300,0.04410803,96150.0,96149.0,0.04739578]
[1763214047487,0.08908233,96150.0,96149.0,0.00211578]
[1763214049287,0.08916951,96150.0,96149.0,0.00211578]
[1763214051289,0.08916951,96150.0,96149.0,0.00111578]
[1763214052393,0.08916951,96150.0,96149.0,0.00011578]
[1763214052783,0.04291,96141.0,96140.0,0.107199]
[1763214052983,0.04291,96141.0,96140.0,0.00015593]
[1763214053194,0.05069896,96141.0,96140.0,0.00015593]
[1763214053495,0.04291,96136.0,96135.0,0.00468089]
[1763214053795,0.45301212,96136.0,96135.0,0.00468089]
[1763214054007,0.45301212,96136.0,96135.0,0.04996089]
[1763214054893,0.45401212,96136.0,96135.0,0.04996089]
[1763214055094,0.43213212,96136.0,96135.0,0.04996089]
[1763214055388,0.45401212,96136.0,96135.0,0.04996089]
[1763214055593,0.43213212,96136.0,96135.0,0.04996089]
[1763214056599,0.07033212,96136.0,96135.0,0.04996089]
[1763214057493,0.09221212,96136.0,96135.0,0.04996089]
[1763214058490,0.04930212,96136.0,96135.0,0.04996089]
[1763214058895,0.02271,96136.0,96135.0,0.04996089]
[1763214059198,0.07201212,96136.0,96135.0,0.04996089]
[1763214059891,0.04930212,96136.0,96135.0,0.04996089]
[1763214060085,0.0019307,96140.0,96139.0,0.0453]
[1763214063597,0.0246407,96140.0,96139.0,0.0453]
[1763214063909,0.0476907,96140.0,96139.0,0.0453]
[1763214066198,0.0019307,96140.0,96139.0,0.0453]
[1763214067202,0.0476907,96140.0,96139.0,0.0453]
[1763214069710,0.0476907,96140.0,96135.0,0.00468089]
[1763214069711,0.04576,96136.0,96135.0,0.04998089]
[1763214073217,0.02271,96136.0,96135.0,0.04998089]
[1763214073617,0.04451,96136.0,96135.0,0.04998089]
[1763214075820,0.0019307,96140.0,96139.0,0.04408]
[1763214077023,0.0254807,96140.0,96139.0,0.04408]
[1763214077322,0.0472807,96140.0,96139.0,0.04408]
[1763214078315,0.0482807,96140.0,96139.0,0.04408]
[1763214079125,0.0264807,96140.0,96139.0,0.04408]
[1763214079623,0.002,96140.0,96139.0,0.04408]
[1763214080325,0.002,96140.0,96138.0,0.01263]
[1763214080326,8.718e-05,96150.0,96149.0,0.04408]
[1763214081428,0.00201788,96150.0,96149.0,0.04408]
[1763214081724,0.04636788,96150.0,96149.0,0.04408]
[1763214082724,0.00201788,96150.0,96149.0,0.04408]
[1763214083322,8.718e-05,96150.0,96149.0,0.04408]
[1763214084625,8.718e-05,96150.0,96149.0,0.04508]
[1763214084922,0.00015593,96159.0,96158.0,0.04408]
[1763214085124,0.00015593,96159.0,96149.0,0.001]
[1763214085125,0.04435,96150.0,96149.0,0.00015601]
[1763214085327,0.0462807,96150.0,96149.0,0.00015601]
[1763214085521,0.05017462,96150.0,96149.0,0.00015601]
[1763214085916,0.05028473,96150.0,96149.0,0.00015601]
[1763214086626,0.04435,96136.0,96135.0,0.12313605]
[1763214086828,0.04435,96136.0,96135.0,0.04876089]
[1763214087824,0.02255,96136.0,96135.0,0.04876089]
[1763214088020,0.02255,96136.0,96135.0,0.05076089]
[1763214088219,0.0019307,96140.0,96135.0,0.05076089]
[1763214088220,0.0458907,96140.0,96139.0,0.0434]
[1763214088824,0.09951949,96140.0,96139.0,0.0434]
[1763214089631,0.09951949,96140.0,96139.0,0.0454]
[1763214097535,0.09951949,96140.0,96139.0,0.002]
[1763214098036,0.09951949,96140.0,96139.0,0.02449]
[1763214098239,0.09951949,96140.0,96139.0,0.04617]
[1763214107241,0.09951949,96140.0,96139.0,0.02449]
[1763214107544,0.09951949,96140.0,96139.0,0.002]
[1763214107741,0.09951949,96140.0,96139.0,0.02449]
[1763214109743,0.09951949,96140.0,96139.0,0.04617]
[1763214110941,0.09951949,96140.0,96139.0,0.002]
[1763214111344,0.0620349,96140.0,96139.0,0.002]
[1763214113542,0.05362879,96140.0,96135.0,0.00468089]
[1763214113848,0.05362879,96140.0,96127.0,0.07437516]
[1763214113849,0.3608,96136.0,96120.0,0.08520193]
[1763214114038,0.3608,96136.0,96130.0,0.00219803]
[1763214114238,0.0592554,96135.0,96130.0,0.00219803]
[1763214114546,9.348e-05,96134.0,96130.0,0.00219803]
[1763214114850,0.00086543,96133.0,96130.0,0.00219803]
[1763214115150,0.7216,96136.0,96130.0,0.00219803]
[1763214115151,0.05791605,96134.0,96130.0,0.00219803]
[1763214115351,0.05691605,96134.0,96130.0,0.00219803]
[1763214115549,0.7216,96136.0,96130.0,0.00219803]
[1763214115752,0.05821431,96133.0,96130.0,0.00219803]
[1763214116046,0.00048813,96135.0,96130.0,0.00219803]
[1763214116248,0.00048813,96135.0,96130.0,0.02468803]
[1763214116553,5.529e-05,96135.0,96130.0,0.00219803]
[1763214116854,0.05778148,96134.0,96130.0,0.00219803]
[1763214117752,0.05778148,96134.0,96132.0,0.05789]
[1763214120046,0.05878148,96134.0,96132.0,0.05789]
[1763214120654,0.05878148,96134.0,96133.0,0.04401]
[1763214121853,0.05978148,96134.0,96133.0,0.04401]
[1763214123255,0.05878148,96134.0,96133.0,0.04401]
[1763214123557,0.05778148,96134.0,96133.0,0.04401]
[1763214126753,5.529e-05,96135.0,96134.0,0.04475]
[1763214127056,5.529e-05,96135.0,96134.0,0.11912516]
[1763214127264,5.529e-05,96135.0,96134.0,0.04475]
[1763214128461,5.529e-05,96135.0,96134.0,0.47991667]
[1763214128662,5.529e-05,96135.0,96134.0,0.40555]
[1763214128862,5.529e-05,96135.0,96134.0,0.47991667]
[1763214129163,0.3608,96152.0,96151.0,0.04475]
[1763214129764,0.4021371,96152.0,96151.0,0.04475]
[1763214135671,0.4031371,96152.0,96151.0,0.04475]
[1763214136169,0.42746482,96152.0,96151.0,0.02323]
[1763214136369,0.42746482,96152.0,96150.0,0.01600803]
[1763214136569,0.02432772,96151.0,96150.0,0.01600803]
[1763214137063,0.02519306,96151.0,96150.0,0.06203803]
[1763214138666,0.02619306,96151.0,96150.0,0.06203803]
[1763214139762,0.02719306,96151.0,96150.0,0.06203803]
[1763214140070,0.02619306,96151.0,96150.0,0.06203803]
[1763214140476,0.02719306,96151.0,96150.0,0.06203803]
[1763214144280,0.00286534,96151.0,96150.0,0.06203803]
[1763214149577,0.3608,96152.0,96151.0,0.04525]
[1763214149578,0.32666534,96152.0,96151.0,0.04525]
[1763214150171,0.3671371,96152.0,96151.0,0.04525]
[1763214150578,0.4114971,96152.0,96151.0,0.04525]
[1763214151375,0.3885671,96152.0,96151.0,0.04525]
[1763214151871,0.4114971,96152.0,96151.0,0.04525]
[1763214153773,0.04436,96151.0,96150.0,0.00219803]
[1763214154176,0.04522534,96151.0,96150.0,0.02445803]
[1763214154681,0.00086534,96151.0,96138.0,0.13342667]
[1763214154980,0.04436,96139.0,96138.0,0.05906]
[1763214155372,0.09521713,96139.0,96138.0,0.05906]
[1763214155574,0.09521713,96139.0,96138.0,0.04525]
[1763214155781,0.09521713,96139.0,96129.0,0.07436667]
[1763214155782,0.04436,96130.0,96129.0,0.07436667]
[1763214155991,0.04436,96129.0,96128.0,0.09662667]
[1763214156280,0.04522573,96129.0,96128.0,0.04525]
[1763214165785,0.04451601,96139.0,96138.0,0.04525]
[1763214166391,0.09623848,96139.0,96138.0,0.04525]
[1763214167677,0.09723848,96139.0,96138.0,0.04525]
[1763214168282,0.09823848,96139.0,96138.0,0.04525]
[1763214168991,0.09823848,96139.0,96138.0,0.02226]
[1763214169489,0.04436,96131.0,96130.0,0.05811]
[1763214169785,0.05128503,96131.0,96130.0,0.06030803]
[1763214178506,0.05128503,96131.0,96130.0,0.00219803]
[1763214178701,0.05128503,96131.0,96130.0,0.04658803]
[1763214181901,0.05128503,96131.0,96130.0,0.06033803]
[1763214182701,0.0444,96127.0,96126.0,0.04475433]
[1763214183093,0.09958542,96127.0,96126.0,0.04475433]
[1763214184602,0.07707542,96127.0,96126.0,0.04475433]